[Event "7th Francophone-ch 2019"]
[Site "Paris"]
[Date "2019.08.11"]
[Round "8.9"]
[White "Dardha, Daniel"]
[Black "Chandesris, Ludovic"]
[Result "1/2-1/2"]
[ECO "A84"]
[WhiteElo "2420"]
[BlackElo "2272"]
[Annotator "NA"]
[PlyCount "110"]
[EventDate "2019.08.04"]
[EventType "swiss"]
[EventCountry "FRA"]
[SourceTitle "playchess.com"]
[Source "ChessBase"]
[SourceQuality "1"]
[TimeControl "40/5400+30:1800+30"]

1. c4 {[%emt 0:01:57]} f5 {[%emt 0:00:00]} 2. Nf3 {[%emt 0:00:53]} Nf6 {[%emt 0:00:11]} 3. d4 {[%emt 0:01:01]} e6 {[%emt 0:00:40]} 4. d5 {[%emt 0:00:53]} exd5 {[%emt 0:09:56]} 5. cxd5 {[%emt 0:00:34]} Bb4+ {[%emt 0:01:38]} 6. Bd2 {[%emt 0:02:28]} Nxd5 {[%emt 0:06:04]} 7. Bxb4 {[%emt 0:01:44]} Nxb4 {[%emt 0:00:07]} 8. Nc3 {[%emt 0:02:27]} c6 {[%emt 0:01:37]} 9. e3 {[%emt 0:20:54]} d5 {[%emt 0:01:06]} 10. g3 {[%emt 0:01:47]} O-O {[%emt 0:04:15]} 11. Bg2 {[%emt 0:00:28]} Nd7 {[%emt 0:03:20]} 12. O-O {[%emt 0:01:28]} Nf6 {[%emt 0:01:58]} 13. a3 {[%emt 0:01:58]} Na6 {[%emt 0:00:05]} 14. b4 {[%emt 0:00:42]} Nc7 {[%emt 0:02:39]} 15. Qb3 {[%emt 0:02:59]} a6 {[%emt 0:08:22]} 16. a4 {[%emt 0:02:37]} Ne4 {[%emt 0:05:29]} 17. Rfd1 {[%emt 0:00:35]} Qf6 {[%emt 0:02:17]} 18. Rac1 {[%emt 0:00:45]} Be6 {[%emt 0:05:09]} 19. Nd4 $15 {[%emt 0:01:54]} Bf7 {[%emt 0:01:02]} 20. Qb1 {[%emt 0:14:59]} Rfd8 {[%emt 0:06:04]} 21. b5 {[%emt 0:05:54]} axb5 {[%emt 0:12:55]} 22. axb5 {[%emt 0:00:04]} Nxc3 {[%emt 0:03:24]} 23. Rxc3 {[%emt 0:00:03]} Ne6 {[%emt 0:00:34]} 24. bxc6 {[%emt 0:08:47]} Nxd4 {[%emt 0:01:02]} 25. Rxd4 {[%emt 0:00:16]} bxc6 {[%emt 0:00:12]} 26. h4 {[%emt 0:00:43]} Rab8 {[%emt 0:02:08]} 27. Qc2 {[%emt 0:00:44]} Be8 {[%emt 0:00:57]} 28. Kh2 {[%emt 0:01:08]} Rb6 {[%emt 0:00:59]} 29. Rf4 {[%emt 0:06:13]} g6 {[%emt 0:03:04]} 30. Rb3 {[%emt 0:03:18]} Rdb8 {[%emt 0:01:02]} 31. Rxb6 {[%emt 0:00:11]} Rxb6 {[%emt 0:00:04]} 32. Qa4 {[%emt 0:06:21]} Qe5 {[%emt 0:02:23]} 33. Qa5 {[%emt 0:02:52]} Rb5 {[%emt 0:01:44]} 34. Qa7 {[%emt 0:00:48]} Rb2 {[%emt 0:00:48]} 35. Qa1 {[%emt 0:01:09]} Qg7 {[%emt 0:01:41]} 36. Qa8 {[%emt 0:01:01]} Qe7 {[%emt 0:03:00]} 37. h5 {[%emt 0:02:01]} Kg7 {[%emt 0:04:44]} 38. Ra4 {[%emt 0:03:01]} Rb7 {[%emt 0:02:23]} 39. hxg6 {[%emt 0:00:21]} hxg6 {[%emt 0:01:39]} 40. Rh4 {[%emt 0:00:08]} Kg8 {[%emt 0:00:25]} 41. Qa1 {[%emt 0:09:30]} Qg7 {[%emt 0:00:00]} 42. Qa4 {[%emt 0:01:35]} Qf8 {[%emt 0:01:54]} 43. Kg1 {[%emt 0:04:54]} Rb1+ {[%emt 0:04:20]} 44. Kh2 {[%emt 0:00:15]} Rb7 {[%emt 0:00:34]} 45. Kg1 {[%emt 0:06:52]} Rb1+ {[%emt 0:00:19]} 46. Bf1 {[%emt 0:00:51]} c5 {[%emt 0:15:00]} 47. Qa2 {[%emt 0:01:15]} Rb4 {[%emt 0:00:18]} 48. Qxd5+ {[%emt 0:03:12]} Bf7 {[%emt 0:00:04]} 49. Qh1 {[%emt 0:01:55]} Rxh4 {[%emt 0:00:19]} 50. Qxh4 {[%emt 0:00:04]} Qd6 {[%emt 0:01:08]} 51. Qa4 {[%emt 0:03:35]} Qd5 {[%emt 0:02:59]} 52. Bg2 {[%emt 0:01:07]} Qd2 {[%emt 0:01:18]} 53. Qa8+ {[%emt 0:00:25]} Kg7 {[%emt 0:00:15]} 54. Qa1+ {[%emt 0:00:09]} Kg8 {[%emt 0:02:04]} 55. Qa8+ {[%emt 0:00:09]} Kg7 {[%emt 0:00:52]} 1/2-1/2

[Event "7th Francophone-ch 2019"]
[Site "Paris"]
[Date "2019.08.11"]
[Round "8.10"]
[White "Toulzac, Pierre-Yves"]
[Black "Piscopo, Pierluigi"]
[Result "0-1"]
[ECO "A03"]
[WhiteElo "2096"]
[BlackElo "2407"]
[Annotator "NA"]
[PlyCount "50"]
[EventDate "2019.08.04"]
[EventType "swiss"]
[EventCountry "FRA"]
[SourceTitle "playchess.com"]
[Source "ChessBase"]
[SourceQuality "1"]
[TimeControl "40/5400+30:1800+30"]

1. f4 {[%emt 0:00:00]} d5 {[%emt 0:02:04]} 2. Nf3 {[%emt 0:02:08]} g6 {[%emt 0:00:21]} 3. g3 {[%emt 0:00:56]} c6 {[%emt 0:00:16]} 4. Bg2 {[%emt 0:00:53]} Qb6 {[%emt 0:00:27]} 5. e3 {[%emt 0:04:54]} Bg7 {[%emt 0:13:50]} 6. Nc3 {[%emt 0:01:43]} Bg4 {[%emt 0:02:56]} 7. Qe2 {[%emt 0:08:37]} e6 {[%emt 0:15:06]} 8. d3 {[%emt 0:12:48]} Nd7 {[%emt 0:04:39]} 9. O-O {[%emt 0:14:40]} Ne7 {[%emt 0:01:31]} 10. h3 {[%emt 0:09:43]} Bxf3 {[%emt 0:00:10]} 11. Bxf3 {[%emt 0:01:27]} O-O {[%emt 0:02:05]} 12. Kh2 {[%emt 0:00:34]} e5 {[%emt 0:05:43]} 13. e4 {[%emt 0:01:03]} dxe4 $11 {[%emt 0:02:07]} 14. Nxe4 {[%emt 0:06:58]} exf4 {[%emt 0:05:47]} 15. gxf4 {[%emt 0:02:58]} Qc7 {[%emt 0:03:20]} 16. Ng3 {[%emt 0:01:51]} Rfe8 {[%emt 0:07:27]} 17. Qg2 {[%emt 0:00:15]} Nd5 {[%emt 0:04:25]} 18. c3 {[%emt 0:02:47]} Rad8 {[%emt 0:11:30]} 19. Kh1 {[%emt 0:03:10]} Ne3 {[%emt 0:01:51]} 20. Bxe3 {[%emt 0:00:38]} Rxe3 {[%emt 0:00:02]} 21. Be4 {[%emt 0:02:28]} Nf6 {[%emt 0:01:52]} 22. Qf2 {[%emt 0:01:40]} Qb6 {[%emt 0:00:16]} 23. Rg1 {[%emt 0:06:19]} Nxe4 {[%emt 0:01:47]} 24. dxe4 {[%emt 0:00:11]} Rdd3 {[%emt 0:00:04]} 25. Kh2 {[%emt 0:00:23]} Rxg3 {[%emt 0:01:31]} 0-1

[Event "7th Francophone-ch 2019"]
[Site "Paris"]
[Date "2019.08.12"]
[Round "9.7"]
[White "Berend, Elvira"]
[Black "Holcman, Jeremy"]
[Result "1/2-1/2"]
[ECO "D37"]
[WhiteElo "2344"]
[BlackElo "2090"]
[Annotator "ChessBase"]
[PlyCount "55"]
[EventDate "2019.08.04"]
[EventType "swiss"]
[EventCountry "FRA"]
[SourceTitle "playchess.com"]
[Source "ChessBase"]
[SourceQuality "1"]
[TimeControl "40/5400+30:1800+30"]

1. d4 {[%emt 0:00:00]} d5 {[%emt 0:00:28]} 2. Nf3 {[%emt 0:00:00]} Nf6 {[%emt 0:00:41]} 3. e3 {[%emt 0:01:32]} e6 {[%emt 0:02:36]} 4. Bd3 {[%emt 0:03:01]} Bd6 {[%emt 0:02:18]} 5. c4 {[%emt 0:03:42]} dxc4 {[%emt 0:09:03]} 6. Bxc4 {[%emt 0:00:12]} a6 {[%emt 0:00:45]} 7. O-O {[%emt 0:04:07]} O-O {[%emt 0:01:52]} 8. Nc3 {[%emt 0:01:21]} b5 {[%emt 0:08:30]} 9. Bd3 {[%emt 0:00:31]} Bb7 {[%emt 0:02:09]} 10. a3 {[%emt 0:07:48]} c5 {[%emt 0:04:29]} 11. dxc5 {[%emt 0:02:01]} Bxc5 {[%emt 0:00:11]} 12. e4 {[%emt 0:00:37]} Nbd7 {[%emt 0:04:29]} 13. Qe2 {[%emt 0:08:33]} e5 {[%emt 0:06:32]} 14. Bg5 {[%emt 0:02:12]} Qb6 {[%emt 0:04:17]} 15. Rad1 {[%emt 0:03:07]} Rfe8 {[%emt 0:03:42]} 16. Bb1 {[%emt 0:01:09]} Bd4 {[%emt 0:02:58]} 17. Na2 {[%emt 0:03:01]} a5 {[%emt 0:11:37]} 18. Bd3 {[%emt 0:09:33]} b4 {[%emt 0:01:40]} 19. axb4 {[%emt 0:03:23]} axb4 {[%emt 0:00:17]} 20. Nc1 {[%emt 0:00:06]} Nc5 {[%emt 0:07:50]} 21. Bxf6 {[%emt 0:02:48]} Qxf6 {[%emt 0:02:09]} 22. Nxd4 {[%emt 0:10:56]} exd4 {[%emt 0:02:21]} 23. f3 {[%emt 0:00:08]} Qb6 {[%emt 0:04:03]} 24. Qf2 {[%emt 0:00:39]} Rad8 {[%emt 0:01:51]} 25. Bc4 {[%emt 0:00:58]} Ne6 {[%emt 0:01:39]} 26. Nb3 {[%emt 0:01:26]} Nf4 {[%emt 0:11:15]} 27. Kh1 {[%emt 0:01:23]} Rc8 {[%emt 0:01:22]} 28. Rxd4 {[%emt 0:29:46]} 1/2-1/2

[Event "7th Francophone-ch 2019"]
[Site "Paris"]
[Date "2019.08.12"]
[Round "9.8"]
[White "Macon, Arthur"]
[Black "Eugene, Floryan"]
[Result "1-0"]
[ECO "B02"]
[WhiteElo "2270"]
[BlackElo "2300"]
[Annotator "ChessBase"]
[PlyCount "49"]
[EventDate "2019.08.04"]
[EventType "swiss"]
[EventCountry "FRA"]
[SourceTitle "playchess.com"]
[Source "ChessBase"]
[SourceQuality "1"]
[TimeControl "40/5400+30:1800+30"]

1. e4 {[%emt 0:00:00]} d5 {[%emt 0:20:17]} 2. exd5 {[%emt 0:00:05]} Nf6 {[%emt 0:00:05]} 3. Nc3 {[%emt 0:01:25]} Nxd5 {[%emt 0:02:12]} 4. Bc4 {[%emt 0:07:52]} Nb6 {[%emt 0:02:40]} 5. Bb3 {[%emt 0:04:11]} Nc6 {[%emt 0:01:35]} 6. Nf3 {[%emt 0:00:41]} e5 {[%emt 0:01:08]} 7. O-O {[%emt 0:00:38]} Bd6 {[%emt 0:00:20]} 8. d4 {[%emt 0:09:27]} Bg4 {[%emt 0:06:44]} 9. h3 {[%emt 0:01:56]} exd4 {[%emt 0:19:42]} 10. hxg4 {[%emt 0:06:14]} dxc3 {[%emt 0:03:29]} 11. Qd3 {[%emt 0:19:59]} Qf6 {[%emt 0:05:55]} 12. Re1+ {[%emt 0:04:14]} Kf8 {[%emt 0:00:14]} 13. bxc3 {[%emt 0:05:36]} Qg6 {[%emt 0:07:34]} 14. Ng5 {[%emt 0:03:08]} Qxd3 {[%emt 0:08:04]} 15. cxd3 {[%emt 0:00:06]} Na5 {[%emt 0:00:06]} 16. Ne4 {[%emt 0:04:39]} Be7 {[%emt 0:01:43]} 17. Bg5 {[%emt 0:02:19]} Bxg5 {[%emt 0:01:46]} 18. Nxg5 {[%emt 0:00:07]} c5 {[%emt 0:01:57]} 19. Re2 {[%emt 0:02:44]} Nxb3 {[%emt 0:02:01]} 20. axb3 {[%emt 0:00:06]} Nd5 {[%emt 0:02:53]} 21. Re5 {[%emt 0:03:51]} Nf4 {[%emt 0:03:26]} 22. Rf5 {[%emt 0:01:49]} Nxd3 {[%emt 0:03:52]} 23. Nxf7 {[%emt 0:01:03]} Rg8 {[%emt 0:00:59]} 24. Ne5+ {[%emt 0:00:16]} Ke7 {[%emt 0:00:09]} 25. Nxd3 {[%emt 0:00:06]} 1-0

[Event "7th Francophone-ch 2019"]
[Site "Paris"]
[Date "2019.08.12"]
[Round "9.9"]
[White "Chandesris, Ludovic"]
[Black "Bouget, Alexandre"]
[Result "1-0"]
[ECO "C45"]
[WhiteElo "2272"]
[BlackElo "2275"]
[Annotator "NA"]
[PlyCount "99"]
[EventDate "2019.08.04"]
[EventType "swiss"]
[EventCountry "FRA"]
[SourceTitle "playchess.com"]
[Source "ChessBase"]
[SourceQuality "1"]
[TimeControl "40/5400+30:1800+30"]

1. e4 {[%emt 0:00:00]} e5 {[%emt 0:01:36]} 2. Nf3 {[%emt 0:00:00]} Nc6 {[%emt 0:00:04]} 3. d4 {[%emt 0:00:04]} exd4 {[%emt 0:00:05]} 4. Nxd4 {[%emt 0:00:09]} Bc5 {[%emt 0:00:03]} 5. Be3 {[%emt 0:00:30]} Qf6 {[%emt 0:00:05]} 6. c3 {[%emt 0:00:56]} b6 {[%emt 0:00:05]} 7. Bc4 {[%emt 0:04:32]} Nge7 {[%emt 0:00:34]} 8. O-O {[%emt 0:00:48]} Bb7 {[%emt 0:00:02]} 9. Nb5 {[%emt 0:16:59]} O-O-O {[%emt 0:01:02]} 10. Bxc5 {[%emt 0:06:16]} bxc5 {[%emt 0:00:05]} 11. Nd2 {[%emt 0:01:18]} Ne5 {[%emt 0:00:05]} 12. Be2 {[%emt 0:02:55]} a6 {[%emt 0:07:58]} 13. Na3 {[%emt 0:00:38]} N7g6 {[%emt 0:16:16]} 14. g3 {[%emt 0:02:19]} d5 {[%emt 0:12:38]} 15. f4 {[%emt 0:03:55]} dxe4 {[%emt 0:00:04]} 16. fxe5 {[%emt 0:03:28]} Qg5 {[%emt 0:00:04]} 17. Nac4 {[%emt 0:03:57]} Nxe5 {[%emt 0:15:13]} 18. Qc2 {[%emt 0:13:01]} f5 {[%emt 0:02:29]} 19. Rad1 {[%emt 0:05:03]} Ng4 {[%emt 0:00:03]} 20. Rf4 {[%emt 0:01:50]} h5 {[%emt 0:01:57]} 21. Nf1 {[%emt 0:05:30]} Rxd1 {[%emt 0:02:49]} 22. Bxd1 {[%emt 0:01:45]} Nf6 {[%emt 0:10:07]} 23. Qf2 {[%emt 0:02:27]} g6 {[%emt 0:02:38]} 24. Qxc5 {[%emt 0:08:55]} Rd8 {[%emt 0:00:04]} 25. Nfe3 {[%emt 0:01:32]} Nd7 {[%emt 0:05:58]} 26. Qa7 {[%emt 0:00:28]} Qf6 {[%emt 0:07:18]} 27. Be2 {[%emt 0:02:28]} Nf8 {[%emt 0:14:08]} 28. Rf1 {[%emt 0:00:50]} h4 {[%emt 0:00:00]} 29. Na5 {[%emt 0:00:29]} Qb6 {[%emt 0:00:00]} 30. Qxb7+ {[%emt 0:00:07]} Qxb7 {[%emt 0:00:00]} 31. Nxb7 {[%emt 0:00:04]} Kxb7 {[%emt 0:00:00]} 32. Rd1 {[%emt 0:00:11]} Rxd1+ {[%emt 0:00:00]} 33. Bxd1 {[%emt 0:00:07]} hxg3 {[%emt 0:00:00]} 34. hxg3 {[%emt 0:00:07]} Ne6 {[%emt 0:00:00]} 35. Kf2 {[%emt 0:00:19]} Nc5 {[%emt 0:00:00]} 36. Bc2 {[%emt 0:00:13]} Kc6 {[%emt 0:00:00]} 37. Ng2 {[%emt 0:01:11]} g5 {[%emt 0:00:00]} 38. b4 {[%emt 0:00:18]} Ne6 {[%emt 0:00:00]} 39. Ne3 {[%emt 0:00:14]} Kb5 {[%emt 0:00:00]} 40. a4+ {[%emt 0:00:15]} Kb6 {[%emt 0:00:00]} 41. Nxf5 {[%emt 0:30:17]} c5 {[%emt 0:26:07]} 42. Nd6 {[%emt 0:01:59]} cxb4 {[%emt 0:02:58]} 43. cxb4 {[%emt 0:00:19]} Kc7 {[%emt 0:05:29]} 44. Nxe4 {[%emt 0:00:30]} Nd4 {[%emt 0:00:02]} 45. Bd1 {[%emt 0:00:40]} Nc6 {[%emt 0:00:06]} 46. b5 {[%emt 0:00:21]} axb5 {[%emt 0:00:03]} 47. axb5 {[%emt 0:00:05]} Nd4 {[%emt 0:00:01]} 48. Be2 {[%emt 0:00:12]} Kb6 {[%emt 0:01:24]} 49. Nxg5 {[%emt 0:00:09]} Nxb5 {[%emt 0:00:07]} 50. Bxb5 {[%emt 0:00:05]} 1-0